bitfinex/quotes_BTCUSD_20241208
["timestamp","ask_amount","ask_price","bid_price","bid_amount"]
[1733616277700,0.07960004,99960.0,99959.0,0.55916963]
[1733616278147,0.07960004,99960.0,99959.0,0.25922474]
[1733616282670,4e-08,99960.0,99959.0,0.25922474]
[1733616284850,4e-08,99960.0,99959.0,0.3013148]
[1733616285279,4e-08,99960.0,99959.0,0.43577978]
[1733616285492,4e-08,99960.0,99959.0,0.59929417]
[1733616286246,4e-08,99960.0,99959.0,0.43576991]
[1733616286452,4e-08,99960.0,99959.0,0.5997666]
[1733616286674,4e-08,99960.0,99959.0,0.4357766]
[1733616287142,4e-08,99960.0,99959.0,0.59963919]
[1733616288764,4e-08,99960.0,99959.0,0.73410793]
[1733616289010,4e-08,99960.0,99959.0,0.3013148]
[1733616289196,4e-08,99960.0,99959.0,0.39096868]
[1733616289414,4e-08,99960.0,99959.0,0.39096693]
[1733616289924,4e-08,99960.0,99959.0,0.3013148]
[1733616290195,4e-08,99960.0,99959.0,0.39096916]
[1733616290436,4e-08,99960.0,99959.0,0.3013148]
[1733616291323,4e-08,99960.0,99959.0,0.73374706]
[1733616291514,4e-08,99960.0,99959.0,0.5992558]
[1733616291801,0.0009862,99979.0,99969.0,0.290043]
[1733616291802,3.4e-07,99970.0,99969.0,0.290043]
[1733616292011,0.00011924,99979.0,99978.0,0.35512006]
[1733616292232,0.0472,99993.0,99979.0,0.04209006]
[1733616292455,0.0472,99993.0,99979.0,0.31611953]
[1733616292704,0.0472,99993.0,99979.0,0.32095336]
[1733616293170,0.00098229,99980.0,99979.0,0.32095336]
[1733616293379,0.00098229,99980.0,99979.0,0.41053749]
[1733616293848,0.00098229,99980.0,99979.0,0.32095336]
[1733616294040,0.00098229,99980.0,99979.0,0.8495992]
[1733616294369,0.00098229,99980.0,99979.0,0.63254407]
[1733616294585,0.00098229,99980.0,99979.0,0.64154407]
[1733616294822,0.00098229,99980.0,99979.0,0.63254407]
[1733616295072,0.00098229,99980.0,99979.0,0.85639881]
[1733616295278,0.00098229,99980.0,99979.0,0.85839881]
[1733616295733,0.00098229,99980.0,99979.0,0.46423531]
[1733616296397,0.00098229,99980.0,99979.0,0.76720434]
[1733616296907,0.00098229,99980.0,99979.0,0.6329516]
[1733616297348,0.00098229,99980.0,99979.0,0.47120624]
[1733616298472,0.00098229,99980.0,99979.0,0.33695336]
[1733616298708,0.00098229,99980.0,99979.0,0.47120624]
[1733616299430,0.00098229,99980.0,99979.0,0.33695336]
[1733616299657,0.00098229,99980.0,99979.0,0.47120624]
[1733616300360,0.00098229,99980.0,99979.0,0.33695336]
[1733616301052,0.00098229,99980.0,99979.0,0.47114949]
[1733616301272,0.00098229,99980.0,99979.0,0.33695336]
[1733616302238,0.07738229,99980.0,99979.0,0.2718633]
[1733616302465,0.07738229,99980.0,99979.0,0.36132885]
[1733616302681,0.07738229,99980.0,99979.0,0.2718633]
[1733616302910,0.07738229,99980.0,99979.0,0.1218633]
[1733616302911,0.12458229,99980.0,99979.0,0.1218633]
[1733616303897,0.12458229,99980.0,99979.0,0.1148633]
[1733616304111,0.12458229,99980.0,99979.0,0.1188633]
[1733616304554,0.12458229,99980.0,99979.0,0.1228633]
[1733616304772,0.12458229,99980.0,99979.0,0.1058633]
[1733616305001,0.12458229,99980.0,99979.0,0.1118633]
[1733616316767,0.00098229,99980.0,99979.0,0.32795347]
[1733616316999,0.00098229,99980.0,99979.0,0.32695336]
[1733616319247,0.00098229,99980.0,99979.0,0.32095336]
[1733616319473,2.9e-07,99980.0,99979.0,0.37095336]
[1733616319698,2.9e-07,99980.0,99979.0,0.46185336]
[1733616319920,0.0008671,99990.0,99979.0,0.95093662]
[1733616320140,0.0008671,99990.0,99989.0,0.50513457]
[1733616320572,0.0008671,99990.0,99989.0,0.59055314]
[1733616321046,0.0008671,99990.0,99989.0,0.62603281]
[1733616321047,1e-07,99990.0,99989.0,0.62603281]
[1733616321272,4e-07,100000.0,99999.0,0.52989106]
[1733616321488,4e-07,100000.0,99999.0,1.06712057]
[1733616321717,4e-07,100000.0,99999.0,1.07361602]
[1733616322391,4e-07,100000.0,99999.0,1.10998035]
[1733616322602,4e-07,100000.0,99999.0,0.92251602]
[1733616322820,4e-07,100000.0,99999.0,0.84361602]
[1733616323042,4e-07,100000.0,99999.0,0.64361602]
[1733616323263,4e-07,100000.0,99999.0,0.61052596]
[1733616323499,0.00791034,100000.0,99999.0,0.11452496]
[1733616323710,0.08781034,100000.0,99999.0,0.11452496]
[1733616324401,0.08781034,100000.0,99999.0,0.10652496]
[1733616325800,0.08781034,100000.0,99999.0,0.11052496]
[1733616326452,0.08781034,100000.0,99999.0,0.11252496]
[1733616328706,0.27291034,100000.0,99999.0,0.01249545]
[1733616329151,0.27291034,100000.0,99999.0,0.006]
[1733616329606,0.27291034,100000.0,99999.0,0.002]
[1733616329861,0.27291034,100000.0,99979.0,0.00111536]
[1733616329862,0.00790994,99991.0,99979.0,0.00111536]
[1733616330078,0.0779,99990.0,99980.0,0.10002951]
[1733616330297,0.0779,99990.0,99981.0,0.00100008]
[1733616330504,0.0779,99990.0,99982.0,0.10002951]
[1733616330722,0.0779,99990.0,99988.0,0.03]
[1733616332591,0.0779,99990.0,99989.0,0.10002951]
[1733616332815,0.0779,99990.0,99989.0,0.10857838]
[1733616334259,0.0779,99990.0,99989.0,0.11257838]
[1733616334953,0.0779,99990.0,99989.0,0.12057838]
[1733616335180,0.08580994,99990.0,99989.0,0.02054887]
[1733616335400,0.13480994,99990.0,99989.0,0.02054887]
[1733616335868,0.13480994,99990.0,99989.0,0.012]
[1733616336362,0.13480994,99990.0,99988.0,0.03]
[1733616336363,0.23002494,99989.0,99988.0,0.03]
[1733616336824,0.23002494,99989.0,99979.0,0.00011529]
[1733616336825,0.140028,99980.0,99979.0,0.00011529]
[1733616337050,0.23003794,99980.0,99979.0,0.00011529]
[1733616337293,0.27903794,99980.0,99979.0,0.00011529]
[1733616339311,0.27903794,99980.0,99979.0,0.00411529]
[1733616339995,0.27903794,99980.0,99979.0,0.00611529]
[1733616341201,0.1311,99980.0,99979.0,0.00611529]
[1733616341395,0.13900994,99980.0,99979.0,0.00611529]
[1733616342506,0.13900994,99980.0,99979.0,0.01261629]
[1733616346866,0.13900994,99980.0,99979.0,0.34339347]
[1733616347816,0.13900994,99980.0,99979.0,0.01261629]
[1733616349180,0.1311,99980.0,99979.0,0.01261629]
[1733616349412,0.1311,99980.0,99979.0,0.1126458]
[1733616349413,0.0821,99980.0,99979.0,0.1126458]
[1733616349641,0.121,99990.0,99980.0,0.140028]
[1733616349885,0.121,99990.0,99986.0,0.08960591]
[1733616350342,0.121,99990.0,99988.0,0.140016]
[1733616350611,0.00790994,99999.0,99990.0,0.140014]
[1733616350612,0.0759,99998.0,99990.0,0.140014]
[1733616350845,0.0759,99998.0,99991.0,0.10002951]
[1733616351077,0.0759,99998.0,99992.0,0.140011]
[1733616351298,0.0759,99998.0,99993.0,0.10002951]
[1733616351793,0.0759,99998.0,99993.0,0.09659766]
[1733616354119,0.0759,99998.0,99994.0,0.140008]
[1733616354396,0.0759,99998.0,99995.0,0.10002951]
[1733616355816,0.0759,99998.0,99996.0,0.140005]
[1733616356055,0.0759,99998.0,99997.0,0.10002951]
[1733616366597,0.140014,99990.0,99984.0,0.08956959]
[1733616366893,0.00790994,99984.0,99983.0,0.08956959]
[1733616367112,0.00790994,99981.0,99980.0,0.13439091]
[1733616367330,0.00790994,99981.0,99980.0,0.4650963]
[1733616367543,0.00790994,99981.0,99980.0,0.08960017]
[1733616367797,0.00790994,99981.0,99980.0,0.0008671]
[1733616368029,0.14793594,99981.0,99980.0,0.0008671]
[1733616368244,0.24608477,99981.0,99980.0,0.13528911]
[1733616368476,0.24608477,99981.0,99980.0,0.0038671]
[1733616368688,0.24608477,99981.0,99980.0,0.09353814]
[1733616369340,0.24608477,99981.0,99980.0,0.0038671]
[1733616369545,0.24608477,99981.0,99980.0,0.0058671]
[1733616370021,0.24608477,99981.0,99980.0,0.0008671]
[1733616370258,0.24608477,99981.0,99980.0,0.0038671]
[1733616370483,0.24608477,99981.0,99980.0,0.0018671]
[1733616371414,0.24608477,99981.0,99980.0,0.1363712]
[1733616371607,0.24608477,99981.0,99980.0,0.0018671]
[1733616371824,0.24608477,99981.0,99980.0,0.0008671]
[1733616372277,0.24708477,99981.0,99980.0,0.0008671]
[1733616372497,0.29568477,99981.0,99980.0,0.00991496]
[1733616374109,0.29568477,99981.0,99980.0,0.14443816]
[1733616374336,0.29568477,99981.0,99980.0,0.00991496]
[1733616376279,0.29568477,99981.0,99980.0,0.14443816]
[1733616376518,0.29568477,99981.0,99980.0,0.00991496]
[1733616376732,0.29568477,99981.0,99980.0,0.14443816]
[1733616376980,0.29568477,99981.0,99980.0,0.00991496]
[1733616377427,0.28777483,99981.0,99980.0,0.14443816]
[1733616377661,0.28777483,99981.0,99980.0,0.00991496]
[1733616377662,0.13530994,99981.0,99980.0,0.00991496]
[1733616378385,0.13530994,99981.0,99980.0,0.18922456]
[1733616378628,0.13530994,99981.0,99980.0,0.00991496]
[1733616379338,0.13530994,99981.0,99980.0,0.09958808]
[1733616379495,0.13530994,99981.0,99980.0,0.00991496]
[1733616379737,0.13530994,99981.0,99980.0,0.09958808]
[1733616379901,0.13530994,99981.0,99980.0,0.00991496]
[1733616381845,0.13530994,99981.0,99980.0,0.0008671]
[1733616382051,0.13530994,99981.0,99980.0,0.14446814]
[1733616382258,0.13530994,99981.0,99980.0,0.13539267]
[1733616382468,0.13530994,99981.0,99980.0,0.00994257]
[1733616384786,0.19084703,99981.0,99980.0,0.00994257]
[1733616385524,0.19084703,99981.0,99980.0,0.0008671]
[1733616386148,0.18984703,99981.0,99980.0,0.0008671]
[1733616386522,0.19184703,99981.0,99980.0,0.0008671]
[1733616387381,0.13630994,99981.0,99980.0,0.0008671]
[1733616394735,0.83213945,99981.0,99980.0,0.0008671]
[1733616395198,0.27394994,99971.0,99952.0,0.08964477]
[1733616395432,0.27394994,99971.0,99950.0,0.0017338]
[1733616395433,0.96977945,99971.0,99970.0,8e-07]
[1733616395657,0.27397794,99951.0,99950.0,0.0017338]
[1733616396118,0.27397794,99951.0,99950.0,0.01032371]
[1733616396340,0.27397794,99951.0,99950.0,0.0017338]
[1733616397260,0.14797794,99951.0,99950.0,0.0017338]
[1733616397509,0.15102161,99970.0,99950.0,0.0017338]
[1733616397510,0.0801,99962.0,99950.0,0.0017338]
[1733616397742,0.140061,99956.0,99950.0,0.0017338]
[1733616397988,0.0459,99965.0,99950.0,0.0017338]
[1733616397989,0.00790994,99957.0,99950.0,0.0017338]
[1733616398198,0.00790994,99953.0,99951.0,0.00862934]
[1733616398685,0.00790994,99953.0,99950.0,0.0017338]
[1733616398906,0.00790994,99953.0,99952.0,0.0086212]
[1733616399161,0.00790994,99953.0,99950.0,0.0017338]
[1733616399433,0.00790994,99953.0,99952.0,0.0086212]
[1733616399688,0.00790994,99953.0,99951.0,0.00862149]
[1733616399899,0.00790994,99953.0,99950.0,0.0017338]
[1733616400117,0.00990994,99953.0,99950.0,0.0017338]
[1733616400343,0.00990994,99953.0,99951.0,0.00862149]
[1733616400785,0.01090994,99953.0,99952.0,0.0086212]
[1733616400997,0.01090994,99953.0,99950.0,0.0017338]
[1733616401241,0.00890994,99953.0,99950.0,0.0017338]
[1733616401447,0.00990994,99953.0,99950.0,0.0017338]
[1733616401892,0.01090994,99953.0,99951.0,0.00862149]
[1733616402331,0.01090994,99953.0,99950.0,0.0017338]
[1733616402541,0.00990994,99953.0,99950.0,0.0017338]
[1733616402749,0.00790994,99953.0,99950.0,0.0017338]
[1733616402973,0.14797594,99953.0,99950.0,0.0017338]
[1733616403187,0.14997594,99953.0,99950.0,0.0017338]
[1733616403618,0.140068,99951.0,99950.0,0.0017338]
[1733616404065,0.14797794,99951.0,99950.0,0.0017338]
[1733616404967,0.14897794,99951.0,99950.0,0.0017338]
[1733616405604,0.19487794,99951.0,99950.0,0.0017338]
[1733616405828,0.21580125,99951.0,99950.0,0.0017338]
[1733616406046,0.27340398,99951.0,99950.0,0.0017338]
[1733616406508,0.21580125,99951.0,99950.0,0.0017338]
[1733616407578,0.29610125,99951.0,99950.0,0.0017338]
[1733616409186,0.268268,99951.0,99950.0,0.0017338]
[1733616409603,0.27617794,99951.0,99950.0,0.0017338]
[1733616412437,0.37620745,99951.0,99950.0,0.0017338]
[1733616412653,0.42620745,99951.0,99950.0,0.0017338]
[1733616412930,1.04467732,99951.0,99950.0,0.0017338]
[1733616417163,1.04367732,99951.0,99950.0,0.0017338]
[1733616417579,1.04767732,99951.0,99950.0,0.0017338]
[1733616418013,1.04667732,99951.0,99950.0,0.0017338]
[1733616418247,0.97400745,99951.0,99950.0,0.0017338]
[1733616418581,1.07400745,99951.0,99950.0,0.0017338]
[1733616418708,0.97397794,99951.0,99950.0,0.0017338]
[1733616418911,0.42817794,99951.0,99950.0,0.0017338]
[1733616419331,0.43017794,99951.0,99950.0,0.0017338]
[1733616420338,0.53020745,99951.0,99950.0,0.0017338]
[1733616420559,0.58020745,99951.0,99950.0,0.0017338]
[1733616421905,0.43017794,99951.0,99950.0,0.0017338]
[1733616423046,0.58020745,99951.0,99950.0,0.0017338]
[1733616424663,0.53020745,99951.0,99950.0,0.0017338]
[1733616424886,1.07600745,99951.0,99950.0,0.0017338]
[1733616425998,1.22582279,99951.0,99950.0,0.0017338]
[1733616429089,1.07600745,99951.0,99950.0,0.0017338]
[1733616429309,0.97597794,99951.0,99950.0,0.0017338]
[1733616430891,0.43017794,99951.0,99950.0,0.0017338]
[1733616433960,0.30397794,99951.0,99950.0,0.0017338]
[1733616435541,0.15397794,99951.0,99950.0,0.0017338]
[1733616436263,0.01390994,99951.0,99950.0,0.0017338]
[1733616436691,0.01390994,99951.0,99950.0,0.01037389]
[1733616436891,0.01390994,99951.0,99950.0,0.0017338]
[1733616437112,0.01390994,99951.0,99950.0,0.01037389]
[1733616437332,0.01390994,99951.0,99950.0,0.0017338]
[1733616437767,0.00990994,99951.0,99950.0,0.0017338]
[1733616438191,0.00890994,99951.0,99950.0,0.0017338]
[1733616439485,0.00890994,99951.0,99950.0,0.00183038]
[1733616439720,0.00790994,99951.0,99950.0,0.00183038]
[1733616440590,0.09110994,99951.0,99950.0,0.00183038]
[1733616441882,0.00790994,99951.0,99950.0,0.00183038]
[1733616442102,0.0077654,99951.0,99950.0,0.00183038]
[1733616448826,0.1344654,99951.0,99950.0,0.00183038]
[1733616449504,0.15441611,99951.0,99950.0,0.00183038]
[1733616450102,0.19787092,99951.0,99950.0,0.00183038]
[1733616451244,0.15541611,99951.0,99950.0,0.00183038]
[1733616452633,0.15741611,99951.0,99950.0,0.00183038]
[1733616453964,0.45744562,99951.0,99950.0,0.00183038]
[1733616454632,0.45644562,99951.0,99950.0,0.00183038]
[1733616454851,0.45844562,99951.0,99950.0,0.00183038]
[1733616455098,0.59829512,99951.0,99950.0,3.8e-07]
[1733616455289,1.55491447,99951.0,99950.0,3.8e-07]
[1733616455501,1.40645996,99951.0,99950.0,3.8e-07]
[1733616455713,1.6310193,99951.0,99950.0,3.8e-07]
[1733616455929,1.73083464,99951.0,99950.0,3.8e-07]
[1733616456458,0.9384474,99941.0,99940.0,3.8e-07]
[1733616456647,1.03847691,99941.0,99940.0,3.8e-07]
[1733616457090,1.33496627,99941.0,99940.0,3.8e-07]
[1733616457300,1.03847691,99941.0,99940.0,3.8e-07]
[1733616457509,1.17321781,99941.0,99940.0,3.8e-07]
[1733616457937,1.04747691,99941.0,99940.0,0.00100038]
[1733616458158,1.04747691,99941.0,99940.0,3.8e-07]
[1733616458360,1.5684587,99941.0,99940.0,3.8e-07]
[1733616458582,1.55465651,99941.0,99940.0,3.8e-07]
[1733616458782,1.52347816,99941.0,99940.0,3.8e-07]
[1733616459053,1.3810264,99941.0,99940.0,3.8e-07]
[1733616459273,1.52944007,99941.0,99940.0,3.8e-07]
[1733616459473,1.3588481,99941.0,99940.0,0.00100038]
[1733616459705,1.53844007,99941.0,99940.0,0.00100038]
[1733616460128,1.3588481,99941.0,99940.0,3.8e-07]
[1733616460354,1.33598359,99941.0,99940.0,3.8e-07]
[1733616460578,1.3459643,99941.0,99940.0,3.8e-07]
[1733616461208,1.18410103,99941.0,99940.0,3.8e-07]
[1733616461456,1.28391556,99941.0,99940.0,3.8e-07]
[1733616461877,1.4461288,99941.0,99940.0,3.8e-07]
[1733616462342,1.28388931,99941.0,99940.0,3.8e-07]
[1733616462571,1.28388931,99941.0,99920.0,0.0017344]
[1733616462572,0.1478754,99921.0,99920.0,0.0017344]
[1733616462872,0.2234754,99921.0,99920.0,0.0017344]
[1733616463104,0.2696754,99921.0,99920.0,0.0017344]
[1733616463781,0.26973293,99921.0,99920.0,0.0017344]
[1733616464000,0.27573293,99921.0,99920.0,0.0017344]
[1733616465099,0.15393293,99921.0,99920.0,0.0017344]
[1733616468190,0.14616753,99921.0,99920.0,0.0017344]
[1733616468684,0.15393293,99921.0,99920.0,0.0017344]
[1733616485097,0.3043374,99921.0,99920.0,0.0017344]
[1733616485312,0.28123293,99921.0,99920.0,0.0017344]
[1733616486961,0.29109321,99921.0,99920.0,0.0017344]
[1733616492349,0.39112272,99921.0,99920.0,0.0017344]
[1733616493500,0.43712272,99921.0,99920.0,4e-07]
[1733616493704,0.44112272,99921.0,99920.0,4e-07]
[1733616493971,0.54293806,99921.0,99920.0,4e-07]
[1733616494455,0.54093806,99921.0,99920.0,4e-07]
[1733616494935,0.53893806,99921.0,99920.0,4e-07]
[1733616495173,0.570162,99921.0,99920.0,4e-07]
[1733616495399,0.54293806,99921.0,99920.0,0.0010004]
[1733616495642,0.54093806,99921.0,99920.0,4e-07]
[1733616495872,0.54993806,99921.0,99920.0,0.0010004]
[1733616497027,1.09573806,99921.0,99920.0,0.0010004]
[1733616499476,1.18546111,99921.0,99920.0,0.0010004]
[1733616499919,1.09573806,99921.0,99920.0,0.0010004]
[1733616500361,1.18546111,99921.0,99920.0,0.0010004]
[1733616500589,1.18546111,99921.0,99910.0,0.0008675]
[1733616500590,0.05,99914.0,99910.0,0.0008675]
[1733616500814,0.0845654,99911.0,99910.0,0.0008675]
[1733616501051,0.43379491,99911.0,99910.0,0.0008675]
[1733616501955,0.44079491,99911.0,99910.0,0.0018675]
[1733616503557,0.44479491,99911.0,99910.0,0.0018675]
[1733616504711,0.45486847,99911.0,99910.0,0.0018675]
[1733616506151,1.00066847,99911.0,99910.0,0.0018675]
[1733616506385,1.02056719,99911.0,99910.0,0.0018675]
[1733616508973,1.02056719,99911.0,99880.0,0.0008667]
[1733616508974,0.1479174,99891.0,99880.0,0.0008667]
[1733616510147,0.1479174,99891.0,99890.0,0.002733]
[1733616510401,0.1479174,99891.0,99890.0,0.0033094]
[1733616511326,0.1479174,99891.0,99890.0,0.0043094]
[1733616513603,0.26681449,99891.0,99890.0,0.0043094]
[1733616513814,0.366844,99891.0,99890.0,4e-07]
[1733616514075,0.44416276,99891.0,99890.0,4e-07]
[1733616514734,0.1479314,99881.0,99880.0,0.0008667]
[1733616514980,0.2262314,99881.0,99880.0,0.00103942]
[1733616516353,0.2342314,99881.0,99880.0,0.00203942]
[1733616517303,0.2382314,99881.0,99880.0,0.00203942]
[1733616517753,0.2382314,99881.0,99880.0,0.00103942]
[1733616517754,0.2302314,99881.0,99880.0,0.00103942]
[1733616517973,0.2392314,99881.0,99880.0,0.00203942]
[1733616519548,0.30712934,99881.0,99880.0,0.00203942]
[1733616521108,0.7772314,99881.0,99880.0,0.00203942]
[1733616521801,0.78723448,99881.0,99880.0,0.00203942]
[1733616522020,0.70893448,99881.0,99880.0,0.00203942]
[1733616523443,0.6989314,99881.0,99880.0,0.00203942]
[1733616527636,0.551,99881.0,99880.0,0.00203942]
[1733616527857,0.551,99881.0,99880.0,0.08193942]
[1733616528079,0.551,99881.0,99880.0,0.13003942]
[1733616528322,0.551,99881.0,99880.0,0.1387032]
[1733616528545,0.547,99881.0,99880.0,0.1387032]
[1733616528788,0.538,99881.0,99880.0,0.1377032]
[1733616529029,0.539,99881.0,99880.0,0.1377032]
[1733616529249,0.5467654,99881.0,99880.0,0.1377032]
[1733616529495,0.5457654,99881.0,99880.0,0.00103942]
[1733616529706,0.5457654,99881.0,99880.0,0.00403942]
[1733616529707,0.52157416,99881.0,99880.0,0.00403942]
[1733616530838,0.52157416,99881.0,99880.0,0.00603942]
[1733616531482,0.52157416,99881.0,99880.0,0.00103942]
[1733616531900,0.52857416,99881.0,99880.0,0.00103942]
[1733616538851,0.5483237,99881.0,99880.0,0.00103942]
[1733616546635,0.52857416,99881.0,99880.0,0.00103942]
[1733616548031,0.52080876,99881.0,99880.0,0.00103942]
[1733616548956,0.52080876,99881.0,99880.0,0.10106893]
[1733616549170,0.51380876,99881.0,99880.0,0.10106893]
[1733616549385,0.51780876,99881.0,99880.0,0.10106893]
[1733616549591,0.51580876,99881.0,99880.0,0.10106893]
[1733616550089,0.51580876,99881.0,99880.0,0.10406893]
[1733616550090,0.51380876,99881.0,99880.0,0.10406893]
[1733616550497,0.51380876,99881.0,99880.0,0.10606893]
[1733616552509,0.51380876,99881.0,99880.0,0.19591684]
[1733616552768,0.51380876,99881.0,99880.0,0.10606893]
[1733616553233,0.51380876,99881.0,99880.0,0.28576896]
[1733616553451,0.51380876,99881.0,99880.0,0.10606893]
[1733616555316,0.51380876,99881.0,99880.0,0.19589052]
[1733616555567,0.52157416,99881.0,99880.0,0.00603942]
[1733616558269,0.52157416,99881.0,99880.0,0.00403942]
[1733616558709,0.52157416,99881.0,99880.0,0.00503942]
[1733616559206,0.52157416,99881.0,99880.0,0.00103942]
[1733616559429,0.52157416,99881.0,99880.0,0.00203942]
[1733616559646,0.52157416,99881.0,99880.0,0.00303942]
[1733616560071,0.59877416,99881.0,99880.0,0.00303942]
[1733616560771,0.6985895,99881.0,99880.0,0.00303942]
[1733616560986,0.7465895,99881.0,99880.0,0.00303942]
[1733616561632,0.7465895,99881.0,99880.0,0.00203942]
[1733616562099,0.7495895,99881.0,99880.0,0.00203942]
[1733616562514,0.64977416,99881.0,99880.0,0.00203942]
[1733616562727,0.65977128,99881.0,99880.0,0.00203942]
[1733616562964,0.65977128,99881.0,99880.0,0.00103942]
[1733616563196,0.66577128,99881.0,99880.0,0.00203942]
[1733616566271,1.21157128,99881.0,99880.0,0.00203942]
[1733616566942,1.66141613,99881.0,99880.0,0.00203942]
[1733616567604,1.55160367,99881.0,99880.0,0.00203942]
[1733616568042,1.50160367,99881.0,99880.0,0.00203942]
[1733616568248,1.55160367,99881.0,99880.0,0.00203942]
[1733616571725,1.50160367,99881.0,99880.0,0.00203942]
[1733616572872,1.45160367,99881.0,99880.0,0.00203942]
[1733616573494,1.50160367,99881.0,99880.0,0.00203942]
[1733616575295,1.55160367,99881.0,99880.0,0.00203942]
[1733616582898,1.65141901,99881.0,99880.0,0.00203942]
[1733616583573,1.55160367,99881.0,99880.0,0.00203942]
[1733616586636,1.50160367,99881.0,99880.0,0.00203942]
[1733616587472,1.55160367,99881.0,99880.0,0.00203942]
[1733616594714,1.58281486,99881.0,99880.0,0.00203942]
[1733616596858,1.58281486,99881.0,99880.0,4.2e-07]
[1733616596859,1.60581486,99881.0,99880.0,4.2e-07]
[1733616597093,1.7056302,99881.0,99880.0,4.2e-07]
[1733616597537,0.4732454,99871.0,99870.0,0.0017338]
[1733616597778,0.4732454,99871.0,99870.0,0.00184928]
[1733616597779,0.60450087,99871.0,99870.0,0.00184928]
[1733616598468,0.55450087,99871.0,99870.0,0.00184928]
[1733616598690,0.60450087,99871.0,99870.0,0.00184928]
[1733616599179,0.65020087,99871.0,99870.0,2.8e-07]
[1733616599416,0.65020087,99871.0,99860.0,0.001734]
[1733616599417,0.2689594,99861.0,99860.0,0.001734]
[1733616599637,0.2689594,99861.0,99860.0,0.00184951]
[1733616599638,0.36898891,99861.0,99860.0,0.00184951]
[1733616600782,0.36898891,99861.0,99860.0,0.00284951]
[1733616600783,0.37598891,99861.0,99860.0,0.00284951]
[1733616600999,0.37598891,99861.0,99860.0,0.00184951]
[1733616601000,0.36898891,99861.0,99860.0,0.00184951]
[1733616601216,0.37598891,99861.0,99860.0,0.00284951]
[1733616601703,0.37898891,99861.0,99860.0,0.00284951]
[1733616601929,0.52898891,99861.0,99860.0,0.00284951]
[1733616602854,0.5485599,99861.0,99860.0,0.00284951]
[1733616603339,0.3985599,99861.0,99860.0,0.00284951]
[1733616604056,0.17753039,99861.0,99860.0,0.00284951]
[1733616605195,0.16753039,99861.0,99860.0,0.00184951]
[1733616605408,0.17053039,99861.0,99860.0,0.00184951]
[1733616606733,0.17153039,99861.0,99860.0,0.00184951]
[1733616606952,0.17153039,99861.0,99860.0,0.00384951]
[1733616618134,0.25473039,99861.0,99860.0,0.00384951]
[1733616620470,0.3547599,99861.0,99860.0,0.00384951]
[1733616621648,0.4047599,99861.0,99860.0,0.00384951]
[1733616621900,0.53952893,99861.0,99860.0,0.00384951]
[1733616622124,0.48952893,99861.0,99860.0,0.00384951]
[1733616622340,0.49457595,99861.0,99860.0,0.00384951]
[1733616622573,0.4047599,99861.0,99860.0,0.00384951]
[1733616623271,0.9505599,99861.0,99860.0,0.00384951]
[1733616623488,1.04036402,99861.0,99860.0,0.00384951]
[1733616623737,0.9505599,99861.0,99860.0,0.00384951]
[1733616624177,1.09035348,99861.0,99860.0,0.00384951]
[1733616624861,1.24035348,99861.0,99860.0,0.00384951]
[1733616625755,1.1475599,99861.0,99860.0,0.00384951]
[1733616625963,1.1555599,99861.0,99860.0,0.00484951]
[1733616626399,1.1585599,99861.0,99860.0,0.00484951]
[1733616626862,1.24834422,99861.0,99860.0,0.00484951]
[1733616627128,1.1585599,99861.0,99860.0,0.00484951]
[1733616627792,1.24834422,99861.0,99860.0,0.00484951]
[1733616628029,1.1585599,99861.0,99860.0,0.00484951]
[1733616629162,1.24831718,99861.0,99860.0,0.00484951]
[1733616630921,1.24829338,99861.0,99860.0,0.00484951]
[1733616631140,1.1585599,99861.0,99860.0,0.00484951]
[1733616633179,1.24829338,99861.0,99860.0,0.00484951]
[1733616634163,1.1815599,99861.0,99860.0,0.00484951]
[1733616636735,1.27128483,99861.0,99860.0,0.00484951]
[1733616637405,1.1815599,99861.0,99860.0,0.00484951]
[1733616637612,1.2712846,99861.0,99860.0,0.00484951]
[1733616638463,1.1815599,99861.0,99860.0,0.00484951]
[1733616639619,1.27129708,99861.0,99860.0,0.00484951]
[1733616640460,1.1815599,99861.0,99860.0,0.00484951]
[1733616641338,1.27129708,99861.0,99860.0,0.00484951]
[1733616641549,1.1815599,99861.0,99860.0,0.00484951]
[1733616645196,1.27127844,99861.0,99860.0,0.00484951]
[1733616645414,1.1815599,99861.0,99860.0,0.00484951]
[1733616646081,1.18150683,99861.0,99860.0,0.00484951]
[1733616653248,1.15850683,99861.0,99860.0,0.00484951]
[1733616653477,0.87527732,99861.0,99860.0,0.00484951]
[1733616656262,0.32947732,99861.0,99860.0,0.00484951]
[1733616657525,0.32947732,99861.0,99860.0,0.00479879]
[1733616665838,0.17947732,99861.0,99860.0,0.00479879]
[1733616666088,0.15990633,99861.0,99860.0,0.00479879]
[1733616669729,0.012,99861.0,99860.0,0.00479879]
[1733616669975,0.012,99861.0,99860.0,0.24602563]
[1733616670190,0.012,99861.0,99860.0,0.25421831]
[1733616670934,0.012,99861.0,99860.0,0.11402231]
[1733616671171,0.012,99861.0,99860.0,0.0139928]
[1733616671395,0.003,99861.0,99860.0,0.0129928]
[1733616671606,0.004,99861.0,99860.0,0.0129928]
[1733616672087,0.0077654,99862.0,99860.0,0.0129928]
[1733616672310,0.0077654,99862.0,99860.0,0.0149928]
[1733616672742,0.140174,99876.0,99861.0,0.140194]
[1733616672743,0.0077654,99873.0,99861.0,0.140194]
[1733616672964,0.1411561,99880.0,99862.0,0.08260126]
[1733616672965,0.0077654,99871.0,99862.0,0.08260126]
[1733616673229,0.1411561,99880.0,99869.0,0.140183]
[1733616673230,0.0077654,99876.0,99869.0,0.140183]
[1733616673418,0.0009871,99880.0,99869.0,0.221783]
[1733616673642,0.0009871,99880.0,99869.0,0.23097154]
[1733616673892,0.0009871,99880.0,99869.0,0.33100105]
[1733616674123,0.0009871,99880.0,99869.0,0.37690105]
[1733616674336,0.0009871,99880.0,99869.0,0.37190105]
[1733616675038,0.0037352,99870.0,99869.0,0.37190105]
[1733616675472,0.0017352,99870.0,99869.0,0.37190105]
[1733616675683,0.0017352,99870.0,99869.0,0.37490105]
[1733616675912,0.0017352,99870.0,99869.0,0.37190105]
[1733616676339,0.0017352,99870.0,99869.0,0.37690105]
[1733616676340,0.0027352,99870.0,99869.0,0.37690105]
[1733616676556,0.0027352,99870.0,99869.0,0.51180814]
[1733616676781,0.0027352,99870.0,99869.0,0.38090105]
[1733616677450,0.0017352,99870.0,99869.0,0.37590105]
[1733616677917,0.0027352,99870.0,99869.0,0.38090105]
[1733616680194,0.00263762,99870.0,99869.0,0.38090105]
[1733616683758,0.00249084,99870.0,99869.0,0.38090105]
[1733616684927,0.00249084,99870.0,99869.0,0.33500105]
[1733616685842,0.00249084,99870.0,99869.0,0.44030105]
[1733616686061,0.00249084,99870.0,99869.0,0.33500105]
[1733616691238,0.00239286,99870.0,99869.0,0.33500105]
[1733616691905,0.00239286,99870.0,99869.0,0.25340105]
[1733616696875,0.00224548,99870.0,99869.0,0.25340105]
[1733616703008,0.00224548,99870.0,99869.0,0.11821805]
[1733616704134,0.00224548,99870.0,99869.0,0.11921921]
[1733616705472,0.00224548,99870.0,99869.0,0.11821805]